fUSD/lending_fUSD_20250217
["ID","MTS","AMOUNT","RATE_DAILY","PERIOD"]
[353436113,1739826640207,-183.60027919,0.00013698,2]
[353436115,1739826640219,-409.96291131,0.00013724,2]
[353436117,1739826640229,-500.0,0.00013724,2]
[353436119,1739826640238,-500.0,0.00013724,2]
[353436121,1739826640248,-500.0,0.00013724,2]
[353436123,1739826640258,-500.0,0.00013724,2]
[353436125,1739826640267,-500.0,0.00013724,2]
[353436128,1739826640278,-500.0,0.00013724,2]
[353436130,1739826640288,-500.0,0.00013724,2]
[353436132,1739826640299,-500.0,0.00013724,2]
[353436134,1739826640312,-506.51708554,0.00013724,2]
[353436136,1739826640323,-500.0,0.00013724,2]
[353436138,1739826640337,-500.0,0.00013724,2]
[353436140,1739826640348,-195.12767967,0.00013724,2]
[353436143,1739826640358,-500.0,0.00013724,2]
[353436145,1739826640368,-500.0,0.00013724,2]
[353436147,1739826640378,-500.0,0.00013724,2]
[353436149,1739826640388,-500.0,0.00013724,2]
[353436151,1739826640397,-393.85374359,0.00013724,2]
[353436153,1739826640407,-500.0,0.00013724,2]
[353436155,1739826640417,-500.0,0.00013724,2]
[353436157,1739826640427,-500.0,0.00013724,2]
[353436159,1739826640437,-500.0,0.00013724,2]
[353436161,1739826640448,-500.0,0.00013724,2]
[353436163,1739826640457,-500.0,0.00013724,2]
[353436165,1739826640467,-500.0,0.00013724,2]
[353436167,1739826640478,-500.0,0.00013724,2]
[353436169,1739826640489,-500.0,0.00013724,2]
[353436171,1739826640500,-500.0,0.00013724,2]
[353436174,1739826640510,-500.0,0.00013724,2]
[353436176,1739826640521,-1000.0,0.00013724,2]
[353436178,1739826640532,-500.0,0.00013724,2]
[353436180,1739826640542,-500.0,0.00013724,2]
[353436182,1739826640552,-500.0,0.00013724,2]
[353436184,1739826640562,-500.0,0.00013724,2]
[353436186,1739826640573,-507.47111046,0.00013724,2]
[353436188,1739826640583,-500.0,0.00013724,2]
[353436191,1739826640595,-500.0,0.00013724,2]
[353436193,1739826640605,-500.0,0.00013724,2]
[353436195,1739826640615,-500.0,0.00013724,2]
[353436197,1739826640626,-500.0,0.00013724,2]
[353436199,1739826640636,-500.0,0.00013724,2]
[353436201,1739826640646,-277.72027017,0.00013724,2]
[353436203,1739826640656,-500.0,0.00013724,2]
[353436205,1739826640666,-500.0,0.00013724,2]
[353436207,1739826640677,-500.0,0.00013724,2]
[353436209,1739826640687,-501.19,0.00013725,2]
[353436211,1739826640697,-382.76,0.0001378,2]
[353436213,1739826640707,-225.64,0.0001378,2]
[353436215,1739826640718,-232.7,0.0001378,2]
[353436217,1739826640729,-326.29,0.0001378,2]
[353436219,1739826640739,-273.77717537,0.0001378,2]
[353436221,1739826640750,-175.25,0.0001378,2]
[353436223,1739826640760,-426.22,0.0001378,2]
[353436226,1739826640770,-521.16,0.0001378,2]
[353436228,1739826640782,-500.0,0.0001378,2]
[353436230,1739826640792,-166.54,0.0001378,2]
[353436232,1739826640803,-500.0,0.0001378,2]
[353436234,1739826640813,-292.8,0.0001378,2]
[353436236,1739826640824,-362.35,0.0001378,2]
[353436238,1739826640834,-353.12,0.0001378,2]
[353436240,1739826640844,-266.47,0.0001378,2]
[353436242,1739826640854,-239.28,0.0001378,2]
[353436244,1739826640865,-342.62,0.0001378,2]
[353436246,1739826640876,-571.73,0.0001378,2]
[353436248,1739826640886,-528.62,0.0001378,2]
[353436250,1739826640896,-350.58,0.0001378,2]
[353436253,1739826640906,-165.73,0.0001378,2]
[353436255,1739826640916,-500.0,0.0001378,2]
[353436257,1739826640927,-500.0,0.0001378,2]
[353436259,1739826640937,-424.21,0.0001378,2]
[353436261,1739826640947,-500.0,0.0001378,2]
[353436263,1739826640958,-319.29,0.0001378,2]
[353436265,1739826640968,-373.1,0.0001378,2]
[353436267,1739826640978,-269.27,0.0001378,2]
[353436269,1739826640988,-516.92,0.0001378,2]
[353436271,1739826640998,-177.27,0.0001378,2]
[353436273,1739826641008,-328.29,0.0001378,2]
[353436275,1739826641018,-333.47,0.0001378,2]
[353436277,1739826641027,-329.2,0.0001378,2]
[353436279,1739826641038,-251.93,0.0001378,2]
[353436281,1739826641048,-421.99,0.0001378,2]
[353436283,1739826641061,-413.48,0.0001378,2]
[353436285,1739826641071,-549.61,0.0001378,2]
[353436288,1739826641083,-152.82,0.0001378,2]
[353436290,1739826641092,-302.86,0.0001378,2]
[353436292,1739826641102,-500.0,0.0001378,2]
[353436294,1739826641112,-466.317696,0.0001378,2]
[353436296,1739826641123,-247.4,0.0001378,2]
[353436298,1739826641133,-500.0,0.0001378,2]
[353436300,1739826641145,-500.0,0.0001378,2]
[353436302,1739826641155,-500.0,0.0001378,2]
[353436304,1739826641165,-588.08,0.0001378,2]
[353436306,1739826641175,-622.24,0.0001378,2]
[353436308,1739826641186,-228.15,0.0001378,2]
[353436310,1739826641195,-203.68,0.0001378,2]
[353436312,1739826641206,-500.0,0.0001378,2]
[353436314,1739826641215,-394.69,0.0001378,2]
[353436316,1739826641226,-316.281146,0.0001378,2]
[353436318,1739826641236,-500.0,0.0001378,2]
[353436320,1739826641246,-630.39,0.0001378,2]
[353436322,1739826641256,-223.43,0.0001378,2]
[353436324,1739826641267,-504.18,0.0001378,2]
[353436326,1739826641277,-340.15,0.0001378,2]
[353436328,1739826641287,-417.35,0.0001378,2]
[353436330,1739826641297,-161.21,0.0001378,2]
[353436332,1739826641310,-404.04,0.0001378,2]
[353436334,1739826641321,-417.23,0.0001378,2]
[353436336,1739826641331,-178.56,0.0001378,2]
[353436338,1739826641341,-500.0,0.0001378,2]
[353436340,1739826641351,-281.02,0.0001378,2]
[353436342,1739826641361,-269.73,0.0001378,2]
[353436344,1739826641371,-500.0,0.0001378,2]
[353436346,1739826641381,-357.32,0.0001378,2]
[353436348,1739826641391,-236.49,0.0001378,2]
[353436351,1739826641401,-264.72,0.0001378,2]
[353436353,1739826641411,-500.0,0.0001378,2]
[353436355,1739826641422,-500.0,0.0001378,2]
[353436356,1739826641432,-193.52,0.0001378,2]
[353436359,1739826641442,-500.0,0.0001378,2]
[353436361,1739826641452,-500.0,0.0001378,2]
[353436363,1739826641461,-500.0,0.0001378,2]
[353436365,1739826641471,-500.0,0.0001378,2]
[353436367,1739826641481,-500.0,0.0001378,2]
[353436369,1739826641491,-252.51,0.0001378,2]
[353436371,1739826641500,-500.0,0.0001378,2]
[353436373,1739826641510,-275.77,0.0001378,2]
[353436375,1739826641520,-500.0,0.0001378,2]
[353436377,1739826641530,-500.0,0.0001378,2]
[353436379,1739826641540,-230.07,0.0001378,2]
[353436381,1739826641550,-500.0,0.0001378,2]
[353436383,1739826641561,-454.73,0.0001378,2]
[353436385,1739826641570,-498.44,0.0001378,2]
[353436387,1739826641580,-400.38,0.0001378,2]
[353436389,1739826641590,-212.31,0.0001378,2]
[353436391,1739826641600,-276.39,0.0001378,2]
[353436393,1739826641609,-500.0,0.0001378,2]
[353436395,1739826641619,-500.0,0.0001378,2]
[353436397,1739826641629,-530.51,0.0001378,2]
[353436399,1739826641640,-500.0,0.0001378,2]
[353436401,1739826641649,-500.0,0.0001378,2]
[353436403,1739826641659,-500.0,0.0001378,2]
[353436405,1739826641669,-224.87,0.0001378,2]
[353436407,1739826641680,-500.0,0.0001378,2]
[353436409,1739826641690,-500.0,0.0001378,2]
[353436411,1739826641700,-239.73,0.0001378,2]
[353436413,1739826641711,-526.28,0.0001378,2]
[353436416,1739826641722,-166.42,0.0001378,2]
[353436418,1739826641732,-472.54,0.0001378,2]
[353436444,1739826641982,-582.41,0.0001378,2]
[353436447,1739826642007,-500.0,0.0001378,2]
[353436450,1739826642020,-500.0,0.0001378,2]
[353436452,1739826642030,-500.0,0.0001378,2]
[353436454,1739826642039,-235.34,0.0001378,2]
[353436456,1739826642049,-254.75,0.0001378,2]
[353436458,1739826642059,-500.0,0.0001378,2]
[353436460,1739826642068,-601.51,0.0001378,2]
[353436462,1739826642078,-500.0,0.0001378,2]
[353436463,1739826642087,-500.0,0.0001378,2]
[353436465,1739826642096,-483.84,0.0001378,2]
[353436467,1739826642106,-500.0,0.0001378,2]
[353436469,1739826642115,-500.0,0.0001378,2]
[353436471,1739826642124,-600.01,0.0001378,2]
[353436473,1739826642134,-500.0,0.0001378,2]
[353436475,1739826642148,-500.0,0.0001378,2]
[353436477,1739826642159,-590.59,0.0001378,2]
[353436479,1739826642169,-500.0,0.0001378,2]
[353436482,1739826642180,-289.12,0.0001378,2]
[353436483,1739826642189,-500.0,0.0001378,2]
[353436485,1739826642198,-500.0,0.0001378,2]
[353436487,1739826642208,-566.04,0.0001378,2]
[353436489,1739826642219,-522.64,0.0001378,2]
[353436490,1739826642229,-500.0,0.0001378,2]
[353436491,1739826642239,-217.05,0.0001378,2]
[353436492,1739826642248,-334.99,0.0001378,2]
[353436493,1739826642258,-500.0,0.0001378,2]
[353436494,1739826642268,-547.2,0.0001378,2]
[353436495,1739826642277,-500.0,0.0001378,2]
[353436496,1739826642287,-241.62,0.0001378,2]
[353436497,1739826642296,-500.0,0.0001378,2]
[353436498,1739826642307,-298.66,0.0001378,2]
[353436500,1739826642316,-500.0,0.0001378,2]
[353436502,1739826642326,-338.98,0.0001378,2]
[353436504,1739826642335,-189.15,0.0001378,2]
[353436506,1739826642345,-500.0,0.0001378,2]
[353436508,1739826642354,-500.0,0.0001378,2]
[353436510,1739826642364,-510.55,0.0001378,2]
[353436511,1739826642373,-227.0,0.0001378,2]
[353436513,1739826642383,-500.0,0.0001378,2]
[353436515,1739826642393,-361.31,0.0001378,2]
[353436519,1739826642403,-331.06,0.0001378,2]
[353436521,1739826642413,-237.05,0.0001378,2]
[353436523,1739826642422,-186.37,0.0001378,2]
[353436524,1739826642432,-500.0,0.0001378,2]
[353436527,1739826642442,-500.0,0.0001378,2]
[353436528,1739826642451,-176.61,0.000138,2]
[353436531,1739826642461,-500.0,0.00013806,2]
[353436533,1739826642471,-500.0,0.00013806,2]
[353436536,1739826642481,-500.0,0.00013806,2]
[353436537,1739826642491,-500.0,0.00013806,2]
[353436539,1739826642502,-500.0,0.00013806,2]
[353436542,1739826642513,-160.13,0.00013806,2]
[353436544,1739826642522,-500.0,0.00013806,2]
[353436547,1739826642531,-566.12,0.00013863,2]
[353436551,1739826642541,-619.14,0.00013863,2]
[353436554,1739826642550,-347.31,0.00013863,2]
[353436557,1739826642560,-173.21,0.00013863,2]
[353436559,1739826642570,-465.32,0.00013863,2]
[353436562,1739826642579,-248.29,0.00013863,2]
[353436565,1739826642589,-466.317696,0.00013863,2]
[353436568,1739826642599,-206.51,0.00013863,2]
[353436571,1739826642609,-436.2,0.00013863,2]
[353436575,1739826642618,-500.0,0.00013863,2]
[353436579,1739826642627,-152.7,0.00013863,2]
[353436582,1739826642637,-316.281146,0.00013863,2]
[353436584,1739826642646,-162.24,0.00013863,2]
[353436587,1739826642655,-374.41,0.00013863,2]
[353436590,1739826642664,-500.0,0.00013863,2]
[353436593,1739826642674,-526.09,0.00013863,2]
[353436595,1739826642683,-331.95,0.00013863,2]
[353436597,1739826642692,-400.25,0.00013863,2]
[353436599,1739826642702,-389.43,0.00013863,2]
[353436601,1739826642712,-213.27,0.00013863,2]
[353436603,1739826642721,-464.24,0.00013863,2]
[353436606,1739826642731,-378.37,0.00013863,2]
[353436607,1739826642742,-622.52,0.00013863,2]
[353436609,1739826642751,-324.94,0.00013863,2]
[353436611,1739826642760,-346.65,0.00013863,2]
[353436613,1739826642769,-500.0,0.00013863,2]
[353436615,1739826642779,-245.17,0.00013863,2]
[353436617,1739826642788,-430.82,0.00013863,2]
[353436619,1739826642798,-349.8,0.00013863,2]
[353436621,1739826642807,-273.48,0.00013863,2]
[353436623,1739826642817,-345.6,0.00013863,2]
[353436625,1739826642827,-509.11,0.00013863,2]
[353436627,1739826642836,-500.0,0.00013863,2]
[353436629,1739826642845,-260.47,0.00013863,2]
[353436631,1739826642855,-536.52,0.00013863,2]
[353436633,1739826642864,-371.42,0.00013863,2]
[353436635,1739826642873,-500.0,0.00013863,2]
[353436637,1739826642884,-500.0,0.00013863,2]
[353436639,1739826642893,-500.0,0.00013863,2]
[353436641,1739826642903,-201.55,0.00013863,2]
[353436643,1739826642912,-500.0,0.00013863,2]
[353436645,1739826642922,-500.0,0.00013863,2]
[353436647,1739826642931,-265.46,0.00013863,2]
[353436649,1739826642941,-500.0,0.00013863,2]
[353436651,1739826642951,-302.6,0.00013863,2]
[353436653,1739826642961,-590.84,0.00013863,2]
[353436655,1739826642971,-500.0,0.00013863,2]
[353436657,1739826642981,-290.56,0.00013863,2]
[353436659,1739826642991,-500.0,0.00013863,2]
[353436661,1739826643001,-332.64,0.00013863,2]
[353436663,1739826643011,-604.8,0.00013888,2]
[353436665,1739826643020,-401.97,0.00013888,2]
[353436667,1739826643030,-536.78,0.00013888,2]
[353436669,1739826643039,-500.0,0.00013888,2]
[353436671,1739826643048,-500.0,0.00013888,2]
[353436673,1739826643058,-500.0,0.00013945,2]
[353436675,1739826643069,-175.91,0.00013945,2]
[353436677,1739826643078,-614.62,0.00013945,2]
[353436679,1739826643088,-500.0,0.00013945,2]
[353436681,1739826643098,-500.0,0.00013945,2]
[353436683,1739826643108,-207.39,0.00013945,2]
[353436685,1739826643118,-278.98,0.00013945,2]
[353436687,1739826643127,-500.0,0.00013945,2]
[353436690,1739826643137,-263.3,0.00013945,2]
[353436692,1739826643149,-500.0,0.00013945,2]
[353436694,1739826643158,-500.0,0.00013945,2]
[353436696,1739826643167,-517.92,0.00013945,2]
[353436697,1739826643178,-344.63,0.0001397,2]
[353436698,1739826643188,-500.0,0.0001397,2]
[353436699,1739826643198,-650.0,0.00014,2]
[353436700,1739826643207,-500.0,0.00014027,2]
[353436701,1739826643217,-313.15,0.00014027,2]
[353436702,1739826643227,-338.14,0.00014027,2]
[353436703,1739826643236,-500.0,0.00014027,2]
[353436704,1739826643245,-500.0,0.00014027,2]
[353436705,1739826643254,-500.0,0.00014027,2]
[353436706,1739826643264,-323.74,0.00014053,2]
[353436707,1739826643273,-346.74,0.00014109,2]
[353436708,1739826643283,-500.0,0.00014109,2]
[353436709,1739826643292,-251.54,0.00014109,2]
[353436710,1739826643302,-500.0,0.00014109,2]
[353436711,1739826643312,-500.0,0.00014191,2]
[353436712,1739826643322,-500.0,0.00014191,2]
[353436713,1739826643332,-500.0,0.00014273,2]
[353436714,1739826643342,-500.0,0.00014273,2]
[353436715,1739826643352,-570.66,0.00014356,2]
[353436716,1739826643362,-500.0,0.00014356,2]
[353436717,1739826643372,-500.0,0.00014438,2]
[353436718,1739826643381,-1838.0,0.00014457,2]
[353436719,1739826643391,-500.0,0.0001452,2]
[353436720,1739826643400,-531.54,0.00014602,2]
[353436721,1739826643410,-1838.0,0.00014606,2]
[353436722,1739826643419,-1838.0,0.00014755,2]
[353436723,1739826643428,-500.0,0.00014799,2]
[353436724,1739826643438,-420.42,0.000148,31]
[353436725,1739826643447,-420.42,0.000148,31]
[353436727,1739826643456,-420.42,0.000148,31]
[353436729,1739826643465,-420.42,0.000148,31]
[353436731,1739826643474,-420.42,0.000148,31]
[353436733,1739826643484,-420.42,0.000148,31]
[353436735,1739826643494,-420.42,0.000148,31]
[353436737,1739826643503,-420.42,0.000148,31]
[353436739,1739826643512,-420.42,0.000148,31]
[353436741,1739826643521,-420.42,0.000148,31]
[353436743,1739826643530,-420.42,0.000148,31]
[353436745,1739826643540,-420.42,0.000148,31]
[353436747,1739826643549,-420.42,0.000148,31]
[353436749,1739826643558,-420.42,0.000148,31]
[353436751,1739826643569,-420.42,0.000148,31]
[353436753,1739826643578,-420.42,0.000148,31]
[353436755,1739826643587,-51817.33547136,0.000148,3]
[353436770,1739826643731,-133222.77285578,0.000148,3]
[353436773,1739826643743,-56291.11573386,0.000148,3]
[353436775,1739826643753,-400.0,0.000149,5]
[353436777,1739826643763,-1838.0,0.00014904,2]
[353436779,1739826643772,-678.56923864,0.00014904,2]
[353436781,1739826643782,-15083.2015038,0.0001498,3]
[353436783,1739826643791,-500.0,0.00014989,2]
[353436784,1739826643801,-1472.57,0.0001499,2]
[353436786,1739826643811,-1838.0,0.00015053,2]
[353436788,1739826643820,-300.0,0.00015068,2]
[353436790,1739826643830,-217.09738408,0.0001518,2]
[353436792,1739826643839,-500.0,0.0001518,2]
[353436794,1739826643849,-504.09136491,0.0001518,2]
[353436796,1739826643858,-500.0,0.0001518,2]
[353436798,1739826643867,-500.0,0.0001518,2]
[353436800,1739826643877,-500.0,0.0001518,2]
[353436802,1739826643887,-1838.0,0.00015202,2]
[353436804,1739826643897,-253.2,0.00015251,2]
[353436806,1739826643906,-500.0,0.00015251,2]
[353436808,1739826643916,-1838.0,0.00015351,2]
[353436810,1739826643925,-155.418946,0.00015816,3]
[353436812,1739826643935,-500.0,0.00015864,2]
[353436814,1739826643944,-500.0,0.00015864,2]
[353436816,1739826643953,-500.0,0.00015864,2]
[353436818,1739826643962,-2000.0,0.00016,2]
[353436820,1739826643972,-700.0,0.00016,2]
[353436822,1739826643981,-2000.0,0.0001601,2]
[353436824,1739826643991,-3724.560647,0.0001602,2]
[353436826,1739826644000,-496.77,0.00016248,2]
[353436828,1739826644010,-300.0,0.00016438,2]
[353436830,1739826644020,-1798.25,0.00016457,2]
[353436832,1739826644029,-1000.0,0.00016546,2]
[353436834,1739826644038,-250.0,0.00016563,2]
[353436836,1739826644048,-4431.319,0.00016573,2]
[353436838,1739826644057,-207.2,0.00016573,2]
[353436840,1739826644067,-150.0,0.00016576,2]
[353436842,1739826644076,-712.16,0.00016658,30]
[353436844,1739826644086,-196.55,0.00016699,2]
[353436846,1739826644096,-176.45,0.00016712,2]
[353436848,1739826644105,-494.94,0.00016717,2]
[353436850,1739826644115,-150.0,0.00016739,2]
[353436851,1739826644124,-204.01,0.00016813,2]
[353436852,1739826644135,-15083.2015038,0.00016931,3]
[353436853,1739826644148,-1000.0,0.00016951,2]
[353436854,1739826644158,-150.0,0.00017186,2]
[353436855,1739826644167,-1472.57,0.00017254,2]
[353436856,1739826644176,-174.47,0.00017452,2]
[353436857,1739826644187,-150.0,0.00017633,2]
[353436858,1739826644196,-170.7002216,0.00017716,2]
[353436859,1739826644205,-600.0,0.00017808,2]
[353436861,1739826644215,-750.0,0.00018,2]
[353436863,1739826644226,-1793.299998,0.00018,2]
[353436865,1739826644235,-500.0,0.00018005,2]
[353436866,1739826644245,-1715.0,0.00018051,2]
[353436868,1739826644255,-150.0,0.0001808,2]
[353436870,1739826644263,-500.0,0.00018099,2]
[353436872,1739826644273,-372.94598075,0.00018099,2]
[353436874,1739826644282,-529.85,0.000181,7]
[353436876,1739826644291,-200.0,0.00018508,2]
[353436878,1739826644300,-15083.2015038,0.00018523,3]
[353436880,1739826644310,-150.0,0.00018527,2]
[353436882,1739826644320,-154.58,0.000186,2]
[353436884,1739826644329,-154.58,0.000186,2]
[353436886,1739826644338,-500.0,0.00018604,2]
[353436888,1739826644347,-500.0,0.00018604,2]
[353436890,1739826644356,-180.27184573,0.00018604,2]
[353436892,1739826644366,-1000.0,0.00018614,2]
[353436894,1739826644375,-500.0,0.00018749,2]
[353436896,1739826644385,-500.0,0.00018843,2]
[353436898,1739826644394,-500.0,0.00018943,2]
[353436900,1739826644403,-150.0,0.00018974,2]
[353436902,1739826644413,-500.0,0.00019,2]
[353436904,1739826644423,-800.0,0.00019,6]
[353436906,1739826644433,-15083.2015038,0.00019002,3]
[353436908,1739826644442,-12500.0,0.00019012,2]
[353436910,1739826644451,-439.94,0.00019041,2]
[353436912,1739826644461,-500.0,0.00019043,2]
[353436914,1739826644470,-1200.0,0.000191,6]
[353436916,1739826644480,-500.0,0.00019143,2]
[353436918,1739826644490,-300.0,0.00019178,2]
[353436920,1739826644499,-778.76712259,0.00019178,2]
[353436930,1739826644580,-455.12287741,0.00019178,2]
[353436932,1739826644590,-27.13972259,0.00019178,2]
[353436935,1739826644606,-386.25027741,0.00019178,2]
[353436937,1739826644616,-300.0,0.00019178,2]
[353436939,1739826644625,-439.11,0.00019178,2]
[353436941,1739826644635,-150.0,0.00019178,2]
[353436943,1739826644644,-439.11,0.00019178,2]
[353436945,1739826644654,-150.0,0.00019178,2]
[353436947,1739826644663,-150.0,0.00019178,2]
[353436949,1739826644673,-439.11,0.00019178,2]
[353436951,1739826644682,-438.75,0.00019178,2]
[353436953,1739826644692,-10526.32230988,0.00019191,3]
[353436957,1739826644728,-481.65117,0.00019191,3]
[353436960,1739826644739,-4075.22802392,0.00019191,3]
[353436961,1739826644749,-200.0,0.000192,2]
[353436964,1739826644759,-1600.0,0.000192,7]
[353436965,1739826644768,-4358.86832178,0.00019214,2]
[353436967,1739826644777,-712.16,0.00019242,30]
[353436969,1739826644786,-500.0,0.00019243,2]
[353436971,1739826644796,-2000.0,0.000193,7]
[353436973,1739826644806,-1027.70910948,0.00019306,2]
[353436975,1739826644815,-1862.83787073,0.00019306,2]
[353436977,1739826644824,-6295.08,0.00019339,2]
[353436979,1739826644833,-500.0,0.00019343,2]
[353436981,1739826644842,-300.0,0.00019397,2]
[353436983,1739826644851,-439.02,0.00019397,2]
[353436985,1739826644860,-400.0,0.000194,7]
[353436987,1739826644869,-150.0,0.00019421,2]
[353436989,1739826644879,-150.0,0.00019425,2]
[353436991,1739826644889,-150.0,0.00019434,2]
[353437007,1739826645029,-150.0,0.00019436,2]
[353437009,1739826645044,-150.0,0.00019441,2]
[353437011,1739826645054,-150.0,0.00019443,2]
[353437013,1739826645063,-150.0,0.00019443,2]
[353437015,1739826645073,-500.0,0.00019443,2]
[353437017,1739826645082,-150.0,0.00019452,2]
[353437019,1739826645091,-151.08,0.00019452,2]
[353437020,1739826645101,-150.0,0.00019453,2]
[353437022,1739826645110,-150.0,0.00019454,2]
[353437024,1739826645119,-150.0,0.00019455,2]
[353437026,1739826645128,-150.0,0.00019462,2]
[353437028,1739826645142,-150.0,0.00019463,2]
[353437030,1739826645152,-150.0,0.00019463,2]
[353437032,1739826645161,-150.0,0.00019464,2]
[353437034,1739826645171,-150.0,0.00019466,2]
[353437036,1739826645181,-150.0,0.0001947,2]
[353437038,1739826645190,-150.0,0.0001947,2]
[353437040,1739826645199,-150.0,0.00019473,2]
[353437042,1739826645210,-150.0,0.00019474,2]
[353437044,1739826645219,-150.0,0.00019475,2]
[353437046,1739826645228,-150.0,0.00019477,2]
[353437048,1739826645237,-150.0,0.00019478,2]
[353437050,1739826645247,-150.0,0.00019485,2]
[353437052,1739826645256,-150.0,0.00019486,2]
[353437054,1739826645265,-15083.2015038,0.0001949,3]
[353437056,1739826645274,-150.0,0.00019493,2]
[353437058,1739826645283,-420.42,0.000195,31]
[353437060,1739826645293,-420.42,0.000195,31]
[353437062,1739826645302,-420.42,0.000195,31]
[353437064,1739826645311,-420.42,0.000195,31]
[353437066,1739826645322,-420.42,0.000195,31]
[353437068,1739826645331,-420.42,0.000195,31]
[353437070,1739826645340,-420.42,0.000195,31]
[353437072,1739826645349,-420.42,0.000195,31]
[353437074,1739826645358,-420.42,0.000195,31]
[353437076,1739826645369,-420.42,0.000195,31]
[353437078,1739826645378,-420.42,0.000195,31]
[353437080,1739826645387,-420.42,0.000195,31]
[353437082,1739826645397,-420.42,0.000195,31]
[353437084,1739826645407,-420.42,0.000195,31]
[353437086,1739826645416,-420.42,0.000195,31]
[353437088,1739826645427,-420.42,0.000195,31]
[353437090,1739826645436,-420.42,0.000195,31]
[353437092,1739826645447,-420.42,0.000195,31]
[353437095,1739826645457,-420.42,0.000195,31]
[353437098,1739826645466,-420.42,0.000195,31]
[353437100,1739826645475,-420.42,0.000195,31]
[353437102,1739826645485,-420.42,0.000195,31]
[353437104,1739826645494,-420.42,0.000195,31]
[353437106,1739826645504,-420.42,0.000195,31]
[353437108,1739826645513,-400.0,0.000195,7]
[353437110,1739826645522,-150.0,0.00019504,2]
[353437112,1739826645531,-150.0,0.00019507,2]
[353437114,1739826645541,-150.0,0.00019508,2]
[353437116,1739826645551,-150.0,0.00019508,2]
[353437118,1739826645560,-150.0,0.0001951,2]
[353437120,1739826645571,-150.0,0.00019512,2]
[353437124,1739826645591,-150.0,0.00019512,2]
[353437126,1739826645602,-1472.57,0.00019518,2]
[353437128,1739826645613,-2500.0,0.0001952,2]
[353437130,1739826645623,-150.0,0.00019522,2]
[353437132,1739826645634,-150.0,0.00019524,2]
[353437134,1739826645644,-150.0,0.00019527,2]
[353437137,1739826645654,-150.0,0.00019527,2]
[353437140,1739826645664,-150.0,0.00019528,2]
[353437143,1739826645674,-150.0,0.00019529,2]
[353437146,1739826645684,-150.0,0.00019532,2]
[353437149,1739826645695,-150.0,0.00019539,2]
[353437151,1739826645705,-150.0,0.00019542,2]
[353437154,1739826645715,-150.0,0.00019543,2]
[353437156,1739826645725,-500.0,0.00019543,2]
[353437158,1739826645734,-150.0,0.00019544,2]
[353437160,1739826645744,-150.0,0.00019545,2]
[353437162,1739826645754,-150.0,0.00019548,2]
[353437164,1739826645764,-150.0,0.00019555,2]